bitfinex-derivatives/quotes_ETHF0:USTF0_20250614
["timestamp","ask_amount","ask_price","bid_price","bid_amount"]
[1749874612904,0.06809268,2553.8,2553.7,2.63212097]
[1749874613195,1.95624,2554.7,2553.8,1.95693]
[1749874613398,0.78264,2554.2,2554.1,1.17131099]
[1749874613593,0.78268,2554.1,2554.0,7.26431099]
[1749874613795,0.6843,2554.1,2554.0,8.04702099]
[1749874614600,0.78259,2554.4,2554.0,7.26431099]
[1749874614802,1.46689,2554.4,2554.3,0.7826]
[1749874615602,0.6843,2554.4,2554.3,0.7826]
[1749874615809,4.05843268,2554.6,2554.5,0.78255]
[1749874616407,0.78256,2554.5,2554.4,0.78256]
[1749874616608,4.05844268,2554.6,2554.5,0.78255]
[1749874616801,3.99035,2554.6,2554.5,0.78255]
[1749874617698,6.0988774,2554.9,2554.5,6.09256189]
[1749874617699,0.0058774,2554.9,2554.5,6.09256189]
[1749874617898,1.95537,2555.9,2554.8,4.76954798]
[1749874617899,0.78231,2555.4,2554.8,4.76954798]
[1749874618203,3.2078,2555.6,2555.0,3.12580438]
[1749874618395,3.99003,2555.6,2555.4,0.78225]
[1749874618599,3.99003,2555.6,2555.5,0.78225]
[1749874619301,3.2078,2555.6,2555.5,0.78225]
[1749874620201,3.99002,2555.6,2555.3,0.0058774]
[1749874620401,0.78228,2555.4,2555.3,0.0058774]
[1749874624809,0.85037268,2555.4,2555.3,0.0058774]
[1749874627809,0.78228,2555.4,2555.3,0.0058774]
[1749874629012,0.85037268,2555.4,2555.3,0.0058774]
[1749874634017,0.78228,2555.4,2555.3,0.0058774]
[1749874636920,0.85037268,2555.4,2555.3,0.0058774]
[1749874639021,1.52237268,2555.4,2555.3,0.0058774]
[1749874641919,4.73017268,2555.4,2555.3,0.0058774]
[1749874645220,4.66208,2555.4,2555.3,0.0058774]
[1749874646214,4.73017268,2555.4,2555.3,0.0058774]
[1749874647019,4.05817268,2555.4,2555.3,0.0058774]
[1749874648222,3.99008,2555.4,2555.3,0.0058774]
[1749874651222,4.05817268,2555.4,2555.3,0.0058774]
[1749874654626,0.85037268,2555.4,2555.3,0.0058774]
[1749874658723,4.05817268,2555.4,2555.3,0.0058774]
[1749874659524,4.05817268,2555.4,2555.3,0.7881874]
[1749874660326,4.05817268,2555.4,2555.3,0.0058774]
[1749874660516,4.05817268,2555.4,2555.3,0.7881874]
[1749874660720,3.27589268,2555.4,2555.3,1.95369507]
[1749874660920,3.27589268,2555.4,2555.3,2.34993538]
[1749874661225,3.27589268,2555.4,2555.3,0.7881874]
[1749874661526,0.06809268,2555.4,2555.3,0.7881874]
[1749874661819,0.06809268,2555.4,2555.3,2.6789874]
[1749874662235,0.0058774,2555.8,2555.7,0.78219]
[1749874662426,0.0058774,2555.8,2555.7,3.98999]
[1749874662620,0.0058774,2555.8,2555.6,9.21152198]
[1749874662922,0.0058774,2555.8,2555.7,1.56345302]
[1749874663127,0.0058774,2555.8,2555.7,1.9537918]
[1749874664223,3.9958274,2555.8,2555.7,0.78219]
[1749874664418,3.9958274,2555.8,2555.6,2.6217018]
[1749874664622,3.9958274,2555.8,2555.6,0.6679]
[1749874664823,3.9958274,2555.8,2555.6,1.45011]
[1749874665323,0.78219,2555.7,2555.6,1.45011]
[1749874665526,0.78222,2555.6,2555.5,1.1716018]
[1749874665726,0.78225,2555.5,2555.4,1.1716018]
[1749874665925,0.78225,2555.5,2555.3,1.9597792]
[1749874666327,0.78228,2555.4,2555.3,1.1774792]
[1749874666634,0.85037268,2555.4,2555.3,1.1774792]
[1749874668133,0.85037268,2555.4,2555.3,0.0058774]
[1749874668433,0.78228,2555.4,2555.3,0.0058774]
[1749874668932,2.02448,2555.4,2555.3,0.0058774]
[1749874671043,0.78228,2555.4,2555.3,0.0058774]
[1749874672140,2.06588,2555.4,2555.3,0.0058774]
[1749874682144,0.78246,2554.8,2554.7,1.1716018]
[1749874682443,0.78252,2554.6,2554.5,1.1716018]
[1749874682639,5.16389,2554.9,2554.4,1.8187018]
[1749874682640,0.78255,2554.5,2554.4,1.8187018]
[1749874682839,0.78255,2554.5,2554.4,0.6471]
[1749874684645,0.78259,2554.4,2554.3,1.1716018]
[1749874684851,0.78262,2554.3,2554.2,3.9914092]
[1749874685049,0.7826,2554.4,2554.2,3.2087792]
[1749874685253,0.0058774,2554.5,2554.2,3.2087792]
[1749874685451,0.78262,2554.3,2554.2,3.9914092]
[1749874685658,0.7826,2554.4,2554.3,0.78262]
[1749874685958,0.7884574,2554.5,2554.4,0.78259]
[1749874686355,0.0058774,2554.5,2554.4,0.78259]
[1749874687252,0.7884474,2554.5,2554.4,0.78259]
[1749874687855,0.78259,2554.4,2554.3,2.1411]
[1749874688053,0.0058774,2554.5,2554.3,2.1411]
[1749874688255,0.7884574,2554.5,2554.3,2.1411]
[1749874688454,0.7884574,2554.5,2554.4,0.78259]
[1749874689661,0.78259,2554.4,2554.3,2.1411]
[1749874690361,0.7884574,2554.5,2554.4,0.78259]
[1749874690954,0.78259,2554.4,2554.3,2.1411]
[1749874694663,0.78259,2554.4,2554.3,2.14109]
[1749874696459,0.78259,2554.4,2554.3,1.3585]
[1749874696660,0.78262,2554.3,2554.2,1.4518074]
[1749874696860,0.78262,2554.3,2554.2,0.7885274]
[1749874703565,0.78262,2554.3,2554.2,0.0058774]
[1749874703775,1.41912,2554.3,2554.2,0.0058774]
[1749874707875,2.77782,2554.3,2554.2,0.0058774]
[1749874712179,5.98562,2554.3,2554.2,0.0058774]
[1749874716189,6.05371268,2554.3,2554.2,0.0058774]
[1749874718089,5.98562,2554.3,2554.2,0.0058774]
[1749874719398,4.62692,2554.3,2554.2,0.0058774]
[1749874719998,1.41912,2554.3,2554.2,0.7885274]
[1749874720296,0.7826,2554.4,2554.3,0.78262]
[1749874720495,0.0058774,2554.5,2554.4,0.78258]
[1749874720691,0.0058774,2554.5,2554.4,3.99038]
[1749874720886,0.0058774,2554.5,2554.4,5.1619818]
[1749874721594,0.0058774,2554.5,2554.4,5.55383302]
[1749874721799,0.0058774,2554.5,2554.4,3.99038]
[1749874722292,0.0058774,2554.5,2554.4,5.30158]
[1749874725100,0.0058774,2554.5,2554.4,6.86301819]
[1749874726198,0.0058774,2554.5,2554.4,10.30158]
[1749874726398,0.0058774,2554.5,2554.4,12.64420198]
[1749874729102,0.0058774,2554.5,2554.4,10.30158]
[1749874730395,0.6624,2555.0,2554.9,0.78243]
[1749874731399,1.51292268,2555.0,2554.9,0.78243]
[1749874731600,0.73049268,2555.0,2554.9,0.78243]
[1749874732400,0.6624,2555.0,2554.9,0.78243]
[1749874732694,1.4448,2555.0,2554.9,0.78243]
[1749874737802,0.78259,2554.4,2554.3,3.99042]
[1749874737997,0.78259,2554.4,2554.3,3.2078]
[1749874738202,0.78262,2554.3,2554.2,0.0058774]
[1749874739002,2.09142,2554.3,2554.2,0.0058774]
[1749874745504,2.15951268,2554.3,2554.2,0.0058774]
[1749874747614,2.09142,2554.3,2554.2,0.0058774]
[1749874749011,5.29922,2554.3,2554.2,0.0058774]
[1749874749313,2.09142,2554.3,2554.2,0.0058774]
[1749874749513,5.29922,2554.3,2554.2,0.0058774]
[1749874750514,5.36731268,2554.3,2554.2,0.0058774]
[1749874751609,0.7828,2553.7,2553.6,10.50057287]
[1749874751812,0.7828,2553.7,2553.6,11.28340287]
[1749874752012,1.95681,2554.0,2553.6,11.28340287]
[1749874752013,0.78279,2553.8,2553.7,0.78279]
[1749874752409,1.9479,2554.0,2553.6,11.28338287]
[1749874752410,0.7828,2553.7,2553.6,11.28338287]
[1749874752613,1.432,2553.7,2553.6,11.28338287]
[1749874752809,1.432,2553.7,2553.6,10.11361]
[1749874753510,1.432,2553.7,2553.6,6.90581]
[1749874754116,0.78283,2553.6,2553.5,1.95261287]
[1749874754318,0.78283,2553.6,2553.5,0.78284]
[1749874756819,0.78286,2553.5,2553.4,1.4336474]
[1749874759020,0.78286,2553.5,2553.4,0.0058774]
[1749874761022,2.82406,2553.5,2553.4,0.0058774]
[1749874764724,0.78301,2553.0,2552.9,3.99082]
[1749874764926,0.78301,2553.0,2552.9,3.2078]
[1749874765728,0.78301,2553.0,2552.9,3.99085]
[1749874766826,0.78301,2553.0,2552.9,3.2078]
[1749874768432,0.78304,2552.9,2552.8,1.3039]
[1749874769025,0.78304,2552.9,2552.8,2.08698]
[1749874769427,0.78308,2552.8,2552.7,0.0058774]
[1749874769627,1.44858,2552.8,2552.7,0.0058774]
[1749874773040,4.65638,2552.8,2552.7,0.0058774]
[1749874773238,10.82338,2552.8,2552.7,0.0058774]
[1749874773829,4.65638,2552.8,2552.7,0.0058774]
[1749874774140,3.2078,2552.8,2552.7,0.7889874]
[1749874774542,3.99088,2552.8,2552.7,0.0058774]
[1749874775352,0.78308,2552.8,2552.7,0.0058774]
[1749874778656,3.99088,2552.8,2552.7,0.0058774]
[1749874781253,0.78326,2552.2,2552.1,3.2078]
[1749874782659,0.78326,2552.2,2552.1,3.99109]
[1749874783060,0.78326,2552.2,2552.1,3.2078]
[1749874783959,0.78326,2552.2,2552.1,3.99109]
[1749874786663,0.78326,2552.2,2552.1,3.2078]
[1749874789265,0.78329,2552.1,2552.0,0.6424]
[1749874791064,0.78332,2552.0,2551.9,0.00391824]
[1749874796475,0.7833,2552.1,2552.0,0.7833]
[1749874798275,0.78332,2552.0,2551.9,0.00391824]
[1749874800075,0.78332,2552.0,2551.9,0.78726824]
[1749874800279,0.78332,2552.0,2551.9,0.00391824]
[1749874801576,0.78347,2551.5,2551.4,1.17091838]
[1749874801779,0.78351,2551.4,2551.3,0.6596]
[1749874801968,0.78351,2551.4,2551.3,1.8311093]
[1749874804078,0.78351,2551.4,2551.3,2.6146493]
[1749874804378,0.78346,2551.6,2551.5,0.78347]
[1749874805273,0.78342,2551.7,2551.6,0.78341]
[1749874805577,3.99121,2551.8,2551.7,0.78341]
[1749874805972,3.99118,2551.8,2551.7,0.78341]
[1749874806171,0.78338,2551.8,2551.7,0.78341]
[1749874806971,0.78342,2551.7,2551.6,0.78342]
[1749874807174,0.6295,2551.9,2551.5,1.8366093]
[1749874807381,0.7834,2551.8,2551.7,0.78339]
[1749874809578,0.7834,2551.8,2551.5,5.0444093]
[1749874809579,0.6295,2551.9,2551.5,5.0444093]
[1749874809775,0.7834,2551.8,2551.7,0.7834]
[1749874810079,1.9413,2551.9,2551.5,5.0444093]
[1749874810276,0.78344,2551.6,2551.5,3.99127]
[1749874810483,0.78344,2551.7,2551.6,0.78343]
[1749874811578,0.78344,2551.7,2551.6,0.78342]
[1749874811579,0.78343,2551.7,2551.6,0.78342]
[1749874819782,0.78343,2551.7,2551.6,1.9549293]
[1749874819979,0.7834,2551.8,2551.7,0.78339]
[1749874821286,3.2078,2552.2,2551.6,1.1715093]
[1749874821589,3.2078,2552.2,2552.1,0.78329]
[1749874821779,0.6864,2552.2,2552.1,0.78329]
[1749874821978,0.0058774,2552.4,2552.3,0.78323]
[1749874822388,0.0058774,2552.4,2552.3,1.9547393]
[1749874822685,0.0058774,2552.4,2552.3,2.08373]
[1749874822886,0.0058774,2552.4,2552.3,3.64342716]
[1749874823392,0.0058774,2552.4,2552.3,3.25565076]
[1749874824784,0.0058774,2552.4,2552.3,1.95515076]
[1749874825189,0.0058774,2552.4,2552.3,0.78323]
[1749874825385,0.0058774,2552.4,2552.3,1.95515076]
[1749874825585,0.0058774,2552.4,2552.3,0.78323]
[1749874826291,0.0058774,2552.4,2552.3,3.30965076]
[1749874828193,3.99089,2552.8,2552.7,0.78311]
[1749874828492,3.2078,2552.8,2552.7,0.78311]
[1749874829579,3.99088,2552.8,2552.7,0.78311]
[1749874832592,3.2078,2552.8,2552.7,0.78311]
[1749874833392,3.99088,2552.8,2552.7,0.78311]
[1749874834090,0.78313,2552.7,2552.6,0.78312]
[1749874834596,3.9909,2552.8,2552.7,0.78311]
[1749874835087,3.2078,2552.8,2552.7,0.78311]
[1749874838292,3.2078,2552.8,2552.5,0.0058774]
[1749874838597,0.78314,2552.6,2552.5,0.7890174]
[1749874839196,1.41324,2552.6,2552.5,0.7890174]
[1749874840991,0.6301,2552.6,2552.5,0.7890174]
[1749874843097,1.41324,2552.6,2552.5,0.7890174]
[1749874843501,2.07424,2552.6,2552.5,0.7890174]
[1749874844494,1.2911,2552.6,2552.5,0.7890174]
[1749874844996,2.6069,2552.6,2552.5,0.7890174]
[1749874846109,1.2911,2552.6,2552.5,0.7890174]
[1749874848593,2.07424,2552.6,2552.5,0.7890174]
[1749874848795,1.2911,2552.6,2552.5,0.7890174]
[1749874849698,2.07424,2552.6,2552.5,0.7890174]
[1749874849899,3.38564,2552.6,2552.5,0.7890174]
[1749874850700,2.6025,2552.6,2552.5,0.7890174]
[1749874851199,2.6025,2552.6,2552.5,1.95783711]
[1749874853498,3.38564,2552.6,2552.5,1.95783711]
[1749874853701,3.38564,2552.6,2552.5,0.7890174]
[1749874853902,3.38564,2552.6,2552.5,1.962989]
[1749874854104,2.6025,2552.6,2552.5,1.962989]
[1749874855706,3.38564,2552.6,2552.5,1.962989]
[1749874857104,0.6301,2552.6,2552.5,1.962989]
[1749874857305,0.78306,2552.9,2552.8,0.78308]
[1749874858708,2.0624174,2553.0,2552.9,0.78305]
[1749874858911,0.6538774,2553.0,2552.9,1.95702366]
[1749874861423,0.6538774,2553.0,2552.9,2.34274716]
[1749874861424,0.0058774,2553.0,2552.9,2.34274716]
[1749874862922,2.33784612,2553.7,2553.0,1.95754]
[1749874863123,0.7828,2553.7,2553.5,1.17303965]
[1749874863419,3.2078,2553.8,2553.4,1.17303965]
[1749874863721,0.78286,2553.5,2553.4,1.95590965]
[1749874863929,2.71796,2553.6,2553.4,1.95590965]
[1749874864127,1.45816,2553.5,2553.4,1.95590965]
[1749874864324,0.6753,2553.5,2553.4,1.95590965]
[1749874864519,0.6753,2553.5,2553.4,0.78287]
[1749874871924,0.6643,2553.6,2553.4,0.78287]
[1749874872129,0.0058774,2553.7,2553.6,0.78283]
[1749874872423,9.3248,2554.3,2554.2,0.78265]
[1749874872628,3.2078,2554.3,2554.2,0.78265]
[1749874875032,0.67,2554.4,2554.3,0.78262]
[1749874875334,0.0058774,2554.5,2554.4,0.78259]
[1749874878837,3.2078,2554.7,2554.6,0.78252]
[1749874879739,3.2078,2555.0,2554.9,0.78243]
[1749874880934,3.99023,2555.0,2554.8,0.78244]
[1749874881134,3.99023,2555.0,2554.9,0.78243]
[1749874881439,0.78244,2554.9,2554.8,0.78245]
[1749874881633,3.99023,2555.0,2554.9,0.78243]
[1749874881835,0.78244,2554.9,2554.8,0.78245]
[1749874882542,1.44184,2554.9,2554.8,0.78245]
[1749874882742,0.6594,2554.9,2554.6,1.3506]
[1749874882942,1.44184,2554.9,2554.8,0.78246]
[1749874883837,0.78247,2554.8,2554.7,0.78247]
[1749874884033,0.6594,2554.9,2554.6,1.3506]
[1749874884237,0.6594,2554.9,2554.8,0.78246]
[1749874884945,1.44183,2554.9,2554.8,0.78246]
[1749874885835,0.6594,2554.9,2554.8,0.78246]
[1749874887049,1.44183,2554.9,2554.8,0.78246]
[1749874887240,0.6594,2554.9,2554.8,0.78246]
[1749874888445,3.2078,2555.0,2554.9,0.78243]
[1749874888650,0.0058774,2555.2,2554.8,6.114]
[1749874888846,0.0058774,2555.2,2555.1,0.78237]
[1749874893847,0.7882174,2555.2,2555.1,0.78237]
[1749874894048,0.0058774,2555.2,2554.9,3.8357]
[1749874894248,1.41578,2555.1,2555.0,0.78239]
[1749874894944,0.6334,2555.1,2555.0,0.78239]
[1749874896143,1.41577,2555.1,2555.0,0.78239]
[1749874896350,0.7824,2555.0,2554.9,6.95141]
[1749874896548,2.1125,2555.0,2554.9,6.95141]
[1749874897138,0.78245,2554.9,2554.8,0.78244]
[1749874897346,0.78255,2554.6,2554.5,0.78254]
[1749874897543,0.78252,2554.7,2554.6,0.78252]
[1749874897948,2.05652,2554.7,2554.6,0.78252]
[1749874898150,0.78255,2554.5,2554.4,6.169]
[1749874898347,2.11264,2554.6,2554.5,0.78255]
[1749874899045,1.3301,2554.6,2554.5,0.78255]
[1749874900249,1.3301,2554.6,2554.3,10.54234307]
[1749874900456,1.3301,2554.6,2554.5,0.78256]
[1749874902151,1.274,2554.7,2554.6,0.78252]
[1749874903051,2.05649,2554.7,2554.6,0.78252]
[1749874908355,2.05649,2554.7,2554.5,1.16988697]
[1749874908356,0.78252,2554.6,2554.5,1.95242697]
[1749874908555,2.05651,2554.7,2554.6,0.78252]
[1749874910761,2.12460268,2554.7,2554.6,0.78252]
[1749874911758,0.78252,2554.6,2554.5,1.16988697]
[1749874911959,0.78252,2554.6,2554.4,1.55688038]
[1749874911960,0.78255,2554.5,2554.4,1.16988697]
[1749874912156,0.78259,2554.4,2554.3,1.95249697]
[1749874912358,0.78259,2554.4,2554.3,1.16988697]
[1749874912557,1.3584,2554.6,2554.2,1.95253697]
[1749874912558,0.78262,2554.3,2554.2,1.95253697]
[1749874912764,2.14102,2554.3,2554.2,1.95253697]
[1749874913265,0.7826,2554.4,2554.3,0.78259]
[1749874914164,0.7826,2554.4,2554.3,1.95416719]
[1749874916059,0.7826,2554.4,2554.3,1.17157719]
[1749874916259,0.78262,2554.3,2554.2,1.17157719]
[1749874916459,0.78268,2554.1,2554.0,0.0058774]
[1749874916655,16.3102,2554.3,2553.3,4.76468038]
[1749874916656,1.95693,2553.8,2553.3,4.76468038]
[1749874916858,0.6539,2553.7,2553.3,4.76468038]
[1749874917059,0.78288,2553.5,2553.3,3.9907]
[1749874917260,0.78288,2553.5,2553.4,0.78289]
[1749874917455,0.78285,2553.6,2553.5,0.78286]
[1749874917760,1.43671,2553.7,2553.6,0.78283]
[1749874917961,0.6539,2553.7,2553.6,0.78283]
[1749874918163,1.4367,2553.7,2553.6,0.78283]
[1749874919266,1.4367,2553.7,2553.5,0.78284]
[1749874919467,1.4367,2553.7,2553.4,2.14567]
[1749874919670,0.78283,2553.6,2553.4,2.14567]
[1749874919966,0.78284,2553.6,2553.4,2.14567]
[1749874920362,0.78286,2553.5,2553.4,2.14567]
[1749874920563,0.6539,2553.7,2553.4,2.14567]
[1749874920760,0.78286,2553.5,2553.4,1.3628]
[1749874922664,0.0058774,2553.8,2553.5,0.78283]
[1749874922863,0.78282,2553.7,2553.6,0.78283]
[1749874924966,0.0058774,2553.8,2553.7,0.7828]
[1749874925162,0.0058774,2553.8,2553.7,3.4533]
[1749874935873,0.0058774,2553.8,2553.7,5.01241932]
[1749874936065,0.0058774,2553.8,2553.7,3.4533]
[1749874936667,0.6805,2554.3,2554.2,0.78265]
[1749874937573,1.46312,2554.3,2554.2,0.78265]
[1749874937969,0.6805,2554.3,2554.2,0.78265]
[1749874938175,0.0058774,2554.5,2554.4,0.78259]
[1749874938669,0.0058774,2554.5,2554.4,10.14139]
[1749874940375,0.0058774,2554.5,2554.4,11.48569]
[1749874940873,0.0058774,2554.5,2554.4,13.04501084]
[1749874943573,0.0058774,2554.5,2554.4,6.89401084]
[1749874943878,0.0058774,2554.5,2554.4,36.87101084]
[1749874944469,0.0058774,2554.5,2554.4,35.31169]
[1749874946878,0.0058774,2554.5,2554.4,36.87101084]
[1749874947577,2.75641,2555.0,2554.9,0.78243]
[1749874947578,1.974,2555.0,2554.9,0.78243]
[1749874950587,2.7564,2555.0,2554.9,0.78243]
[1749874953590,2.75643,2555.0,2554.9,0.78243]
[1749874953889,0.78243,2554.9,2554.8,23.816]
[1749874954089,2.11043,2554.9,2554.8,23.816]
[1749874954291,2.11043,2554.9,2554.8,24.59846]
[1749874954784,1.328,2554.9,2554.8,24.59846]
[1749874954985,2.11043,2554.9,2554.8,24.59846]
[1749874955989,1.328,2554.9,2554.8,24.59846]
[1749874956986,0.6722,2555.0,2554.9,0.78243]
[1749874957385,1.9718,2555.0,2554.9,0.78243]
[1749874960699,2.7542,2555.0,2554.9,0.78243]
[1749874961596,0.78243,2554.9,2554.8,24.59843]
[1749874961795,2.12143,2554.9,2554.8,24.59843]
[1749874962097,1.339,2554.9,2554.8,24.59843]
[1749874964603,2.12143,2554.9,2554.8,24.59843]
[1749874964903,1.339,2554.9,2554.8,24.59843]
[1749874968707,1.339,2554.9,2554.8,26.15775084]
[1749874968908,1.339,2554.9,2554.8,24.59843]
[1749874969310,1.339,2554.9,2554.8,26.15775084]
[1749874969713,2.12143,2554.9,2554.8,26.15775084]
[1749874970111,2.12143,2554.9,2554.8,0.78243]
[1749874970311,2.12143,2554.9,2554.8,24.57543]
[1749874971215,1.339,2554.9,2554.8,24.57543]
[1749874972215,2.12143,2554.9,2554.8,24.57543]
[1749874973118,0.78246,2554.8,2554.7,2.34765824]
[1749874973314,2.06176,2554.8,2554.7,0.0058774]
[1749874973616,7.06176,2554.8,2554.7,0.0058774]
[1749874975913,0.78259,2554.4,2554.3,0.7826]
[1749874976113,0.78258,2554.5,2554.4,0.78258]
[1749874976318,3.99034,2554.6,2554.5,0.78255]
[1749874976611,0.68,2554.6,2554.5,0.78255]
[1749874976816,1.3359,2554.6,2554.5,0.78255]
[1749874977214,2.11842,2554.6,2554.5,0.78255]
[1749874977412,1.3359,2554.6,2554.5,0.78255]
[1749874977718,2.11842,2554.6,2554.5,0.78255]
[1749874978312,1.3359,2554.6,2554.5,0.78255]
[1749874978513,2.11842,2554.6,2554.5,0.78255]
[1749874979019,1.3359,2554.6,2554.5,0.78255]
[1749874979316,2.11842,2554.6,2554.5,0.78255]
[1749874979516,3.37682,2554.6,2554.5,0.78255]
[1749874981916,2.5943,2554.6,2554.5,0.78255]
[1749874982315,3.37682,2554.6,2554.5,0.78255]
[1749874988718,1.3359,2554.6,2554.3,1.17814602]
[1749874988920,0.78258,2554.4,2554.3,0.0058774]
[1749874989227,0.78258,2554.4,2554.3,0.7884974]
[1749874990930,0.78258,2554.4,2554.3,0.0058774]
[1749874992022,5.31638,2554.5,2554.4,0.78259]
[1749874992221,0.78258,2554.5,2554.4,0.78259]
[1749874993230,0.78259,2554.4,2554.3,0.7884674]
[1749874993916,0.78259,2554.4,2554.3,0.0058774]
[1749874994115,0.78259,2554.4,2553.4,1.95513862]
[1749874994116,0.78281,2553.7,2553.4,1.95513862]
[1749874994321,3.2078,2553.9,2553.5,1.3342]
[1749874994522,0.78281,2553.7,2553.5,2.11706]
[1749874994823,0.78283,2553.6,2553.5,1.3342]
[1749874995421,0.78289,2553.4,2553.3,1.17814602]
[1749874995626,0.78289,2553.4,2553.3,0.0058774]
[1749874997217,1.42599,2553.4,2553.3,0.0058774]
[1749874997422,2.68069,2553.4,2553.3,0.0058774]
[1749875002436,1.42599,2553.4,2553.3,0.0058774]
[1749875002636,3.2078,2553.6,2553.3,0.7887774]
[1749875002934,3.2078,2553.6,2553.3,0.0058774]
[1749875002935,0.78289,2553.4,2553.3,0.0058774]
[1749875010436,0.78289,2553.4,2553.3,0.7887974]
[1749875010636,0.78289,2553.4,2553.3,0.0058774]
[1749875011430,0.78288,2553.5,2553.4,0.78288]
[1749875011630,0.78289,2553.4,2553.3,1.4346774]
[1749875011831,0.78289,2553.4,2553.3,2.7575774]
[1749875012027,0.78289,2553.4,2553.3,1.9746774]
[1749875014342,3.2078,2553.6,2553.3,1.9746774]
[1749875014542,0.6449,2553.7,2553.5,0.78283]
[1749875014736,0.78283,2553.6,2553.5,0.78283]
[1749875015438,0.78282,2553.7,2553.6,0.78281]
[1749875015634,0.7886474,2553.8,2553.7,0.7828]
[1749875015944,0.7828,2553.7,2553.6,0.7828]
[1749875016542,0.7828,2553.7,2553.3,0.6517774]
[1749875016543,1.95701,2553.7,2553.3,0.6517774]
[1749875016748,0.78289,2553.4,2553.3,0.0058774]
[1749875034160,2.12559,2553.4,2553.3,0.0058774]
[1749875034364,0.78304,2552.9,2552.8,1.95382894]
[1749875034867,0.78304,2552.9,2552.8,1.95383894]
[1749875035772,0.78304,2552.9,2552.8,1.17075894]
[1749875039077,0.78304,2552.9,2552.8,1.95382894]
[1749875039477,0.78304,2552.9,2552.8,1.17075894]
[1749875040581,0.78311,2552.7,2552.6,0.0058774]
[1749875041274,1.43641,2552.7,2552.6,0.0058774]
[1749875043373,0.78309,2552.8,2552.7,0.78311]
[1749875044881,0.78311,2552.7,2552.6,2.1426874]
[1749875045577,0.78311,2552.7,2552.6,3.31344634]
[1749875045984,2.0012,2553.2,2552.6,3.31344634]
[1749875045985,2.33537954,2553.3,2552.6,7.53202349]
[1749875046286,0.78299,2553.1,2553.0,0.783]
[1749875046483,0.78299,2553.1,2553.0,2.6674]
[1749875051588,0.78299,2553.1,2553.0,1.8844]
[1749875051989,0.78301,2553.0,2552.9,1.17244609]
[1749875052191,1.95739,2553.2,2552.8,1.17244609]
[1749875052192,0.78304,2552.9,2552.8,1.17244609]
[1749875052395,1.46694,2552.9,2552.8,1.95551609]
[1749875052583,1.46694,2552.9,2552.8,1.17244609]
[1749875053187,1.46694,2552.9,2552.8,1.95551609]
[1749875053685,0.78303,2553.0,2552.9,0.78304]
[1749875053881,0.78303,2553.0,2552.9,1.95596357]
[1749875058092,0.78303,2553.0,2552.9,1.17292357]
[1749875058494,0.78303,2553.0,2552.9,1.95596357]
[1749875059694,0.78303,2553.0,2552.9,1.956307]
[1749875060795,1.9644,2553.2,2553.1,0.78298]
[1749875060796,1.41585,2553.2,2553.1,0.78298]
[1749875060994,0.78298,2553.1,2553.0,1.17320725]
[1749875061195,0.78298,2553.1,2553.0,0.78301]
[1749875061699,0.78301,2553.0,2552.9,1.95622725]
[1749875063102,0.78301,2553.1,2553.0,0.783]
[1749875064503,1.41588,2553.2,2553.1,0.78298]
[1749875064802,0.78298,2553.1,2553.0,1.95619725]
[1749875065597,0.78298,2553.1,2553.0,1.17320725]
[1749875066499,0.78298,2553.1,2553.0,0.78301]
[1749875066698,0.78298,2553.1,2552.9,1.17320725]
[1749875066699,0.78301,2553.0,2552.9,1.95622725]
[1749875067503,0.783,2553.1,2553.0,0.783]
[1749875068299,0.78297,2553.2,2553.1,0.78297]
[1749875069095,0.78298,2553.1,2553.0,2.57810725]
[1749875069296,0.78298,2553.1,2553.0,1.17320725]
[1749875069498,0.78301,2553.0,2552.9,1.95623725]
[1749875069694,1.41041,2553.0,2552.9,1.17320725]
[1749875071009,1.41041,2553.0,2552.9,1.95624725]
[1749875073012,1.41041,2553.0,2552.9,1.95658743]
[1749875073512,1.41041,2553.0,2552.9,0.78304]
[1749875073812,1.41041,2553.0,2552.9,1.95683966]
[1749875074412,1.41041,2553.0,2552.9,0.78304]
[1749875078918,0.78304,2552.9,2552.8,1.564356]
[1749875079915,0.78304,2552.9,2552.8,2.347436]
[1749875082519,1.41043,2553.0,2552.9,0.78304]
[1749875082822,1.41043,2553.0,2552.9,1.95747953]
[1749875084020,0.6274,2553.0,2552.9,1.95747953]
[1749875084221,0.6274,2553.0,2552.9,0.78304]
[1749875084721,1.41041,2553.0,2552.9,0.78304]
[1749875087420,1.41041,2553.0,2552.9,2.347396]
[1749875090721,1.41041,2553.0,2552.9,1.564356]
[1749875095027,1.41041,2553.0,2552.9,2.347396]
[1749875097329,1.41041,2553.0,2552.9,1.564356]
[1749875103130,1.41041,2553.0,2552.9,2.347396]
[1749875103933,1.41041,2553.0,2552.9,1.564356]
[1749875106039,1.41041,2553.0,2552.9,2.347396]
[1749875106330,0.78301,2553.1,2553.0,0.78301]
[1749875106532,0.78301,2553.1,2553.0,1.95755643]
[1749875106834,0.78301,2553.1,2553.0,0.78301]
[1749875107031,3.2078,2553.3,2553.0,1.564356]
[1749875107232,6.32602954,2553.6,2553.5,0.78286]
[1749875107436,3.2078,2553.6,2553.5,1.95735644]
[1749875107641,3.99063,2553.6,2553.5,0.78286]
[1749875108325,3.99063,2553.6,2553.5,1.95599136]
[1749875110235,3.99063,2553.6,2553.5,0.78286]
[1749875110534,0.78286,2553.5,2553.4,1.95600136]
[1749875110735,0.78286,2553.5,2553.4,1.17313136]
[1749875110932,1.9857,2553.5,2553.2,1.17313136]
[1749875111238,0.78295,2553.2,2553.1,1.85303136]
[1749875111536,0.78295,2553.2,2553.1,2.63601136]
[1749875112646,0.78294,2553.3,2553.2,0.78293]
[1749875113538,0.78294,2553.3,2553.2,0.78294]
[1749875115837,0.78295,2553.2,2553.1,2.63599136]
[1749875117045,0.78295,2553.3,2553.2,0.78294]
[1749875118043,0.78295,2553.2,2553.1,1.17313136]
[1749875118237,0.78304,2552.9,2552.8,1.17313136]
[1749875118640,0.78304,2552.9,2552.8,0.78307]
[1749875119938,3.2078,2553.3,2552.8,1.17313136]